Cogmind - Beta 12 X3 @@@ ROGUE MODE // 2022.11.30 @ 14:59:49 Player: Jezoensis Result: Destroyed by as-83948 with Assembled F-torch Performance ------------- Evolutions (0) 0 Regions Visited (2) 400 Robots Destroyed (13) 65 Value Destroyed (276) 276 Prototype IDs (4) 80 Alien Tech Used (0) 0 Bonus (0) 0 TOTAL SCORE: 821 Bonus ------- None Cogmind --------- Core Integrity 0/250 Matter 22/300 Energy 125/125 System Corruption 2% Temperature Warm (188) Movement Treading (240) Ox1 Location -10/Mines Parts ------- > --- POWER (1) -------- Light Ion Engine > --- PROPULSION (2) --- Improved Treads Improved Treads > --- UTILITY (2) ------ High-capacity Storage Unit Light Armor Plating > --- WEAPON (2) ------- Autogun Autogun > --- INVENTORY (20) --- Ion Engine Light Ion Engine Improved Treads Improved Treads Wheel Wheel Compact Wheel Compact Wheel Small Storage Unit High-capacity Matter Pod (0) Experimental Sensor Array Improved Terrain Scanner EM Pulse Gun Assault Rifle Autogun Autogun Improved Light Cannon Improved Light Cannon Improved Light Cannon Mining Laser Peak State ------------ > --- POWER ------------ Light Ion Engine > --- PROPULSION ------- Wheel Compact Wheel > --- UTILITY ---------- High-capacity Storage Unit Experimental Sensor Array > --- WEAPON ----------- Autogun Autogun > --- INVENTORY -------- Ion Engine Light Ion Engine Improved Treads Improved Treads Improved Treads Improved Treads Wheel Compact Wheel Small Storage Unit High-capacity Matter Pod Improved Terrain Scanner Light Armor Plating EM Pulse Gun Autogun Autogun Improved Light Cannon Improved Light Cannon Improved Light Cannon Improved Light Cannon Mining Laser [Rating: 20] Favorites ----------- Power Light Ion Engine Engine Light Ion Engine Propulsion Wheel Treads Light Treads Wheel Wheel Utility Improved Terrain Scanner Device Improved Terrain Scanner Storage High-capacity Storage Unit Protection Light Armor Plating Weapon Autogun Energy Gun EM Pulse Gun Energy Cannon Light EM Pulse Cannon Ballistic Gun Autogun Special Weapon Mining Laser Build | -11 -10 -10 ------- Run | Scr Mat Min Slots Evolved . | . . . Power . | . . . Propulsion . | . . . Utility . | . . . Weapon . | . . . Parts Attached 39 | 10 22 7 Power 3 | 1 2 . Engine 3 | 1 2 . Core . | . . . Reactor . | . . . Propulsion 16 | 4 9 3 Treads 5 | . 3 2 Leg . | . . . Wheel 11 | 4 6 1 Hover . | . . . Flight . | . . . Utility 8 | 2 2 4 Device 5 | 1 1 3 Storage 2 | 1 1 . Processor . | . . . Hackware . | . . . Protection 1 | . . 1 Artifact . | . . . Weapon 12 | 3 9 . Energy Gun 6 | 2 4 . Energy Cannon 1 | . 1 . Ballistic Gun 3 | 1 2 . Ballistic Cannon . | . . . Launcher . | . . . Special Weapon 2 | . 2 . Impact Weapon . | . . . Slashing Weapon . | . . . Piercing Weapon . | . . . Special Melee Weapon . | . . . Unidentified Prototypes 1 | . . 1 Parts Lost 4 | . 4 . Power 1 | . 1 . Propulsion 1 | . 1 . Utility . | . . . Weapon 2 | . 2 . Highest Loss Streak 4 | . 4 . To Critical Strikes . | . . . Average Slot Usage (%) 99 | . 98 100 Engine 14 | . 14 14 Treads 2 | . 2 2 Wheel 25 | . 25 25 Device 13 | . 13 12 Storage 14 | . 14 14 Energy Gun 7 | . 10 . Ballistic Gun 19 | . 15 28 Special Weapon 1 | . 1 . Naked Turns . | . . . Heaviest Build 52 | 12 52 52 Greatest Support 46 | 32 32 46 Greatest Overweight (x) 4 | . 4 1 Average Overweight (x) . | . . 1 Largest Inventory Capacity 20 | 8 20 20 Average Capacity 16 | 7 16 20 Most Carried 20 | 7 20 20 Average Carried 12 | 4 11 19 Final Capacity 20 | 8 20 20 Final Carried 20 | 7 20 20 Class Distribution -------------------- 100% | Mutant Dominant Class ---------------- Mutant | -10/Materials Mutant | -10/Mines Resources | -11 -10 -10 ----------- Run | Scr Mat Min Matter Collected 408 | 311 35 62 Remotely . | . . . Salvage Created 390 | 126 209 55 Parts 20 | 6 11 3 Haulers Intercepted . | . . . Recyclers Shooed . | . . . Parts Field Recycled . | . . . Retrieved Matter . | . . . Parts Self-Destructed . | . . . Prevented . | . . . Kills | -11 -10 -10 ------- Run | Scr Mat Min Combat Hostiles Destroyed 11 | . 8 3 Guns 8 | . 5 3 AOE 3 | . 3 . Classes Destroyed 6 | 2 3 1 Tunneler 3 | 2 . 1 Recycler 1 | 1 . . Watcher 1 | . 1 . Swarmer 3 | . 3 . Grunt 5 | . 5 . Assembled 3 | . . 3 Best Kill Streak 6 | 2 6 3 Combat Bots Only 5 | . 5 3 Max Kills in Single Turn 4 | 1 4 1 Gunslinging . | . . . Exploded 3 | . 3 . Melee . | . . . Uniques/NPCs Destroyed . | . . . Combat | -11 -10 -10 -------- Run | Scr Mat Min Damage Taken 1095 | . 637 458 Core 260 | . 140 120 Absorbed by Shields . | . . . Core Remaining (%) 100 | 100 . . Volleys Fired 40 | 12 21 7 Largest 2 | 2 2 2 Hottest 100 | 70 100 46 Shots Fired 77 | 24 38 15 Gun 73 | 24 34 15 Cannon 2 | . 2 . Launcher . | . . . Special 2 | . 2 . Kinetic 46 | 12 19 15 Thermal 22 | 12 10 . Explosive . | . . . Electromagnetic 9 | . 9 . Robot Hit Streak 13 | 5 13 3 Robot Miss Streak 3 | 3 3 2 Penetration Max . | . . . Secondary Targets 1 | . . 1 Max Gunslinging Chain 1 | . . 1 Shots Hit Robots 50 | 16 25 9 Core Hits 29 | 5 16 8 Critical Kills . | . . . Critical Parts Destroyed . | . . . Critical Strikes 1 | 1 . . Burn 1 | 1 . . Melee Attacks . | . . . Impact . | . . . Slashing . | . . . Piercing . | . . . Sneak Attacks . | . . . Combat Hostiles . | . . . Follow-up Attacks . | . . . Damage Inflicted 1256 | 188 886 182 Guns 589 | 188 219 182 Cannons 48 | . 48 . Explosions 619 | . 619 . Melee . | . . . Ramming . | . . . Kinetic 350 | 62 106 182 Thermal 770 | 126 644 . Explosive . | . . . Electromagnetic 136 | . 136 . Impact . | . . . Slashing . | . . . Piercing . | . . . Highest Corruption 2 | . 2 2 Average Corruption 2 | . 2 2 Corruption Purged . | . . . Corruption Blocked . | . . . Effects 9 | . 4 5 Message Errors 1 | . . 1 Matter Fused 3 | . 2 1 Heat Flow Errors 1 | . 1 . Energy Discharges 2 | . 1 1 Data Loss (major) 1 | . . 1 Misfires 1 | . . 1 Overload Shots . | . . . Overflow Damage 296 | . 296 . Projectiles . | . . . Explosions 296 | . 296 . Melee . | . . . Knockbacks . | . . . Impact . | . . . Kinetic . | . . . Secondary . | . . . Self-Inflicted Damage 256 | . 256 . Shots 3 | . 3 . Rammed . | . . . Targets Rammed . | . . . Kicked . | . . . Crushed . | . . . Highest Temperature 217 | 90 217 168 Average Temperature 52 | 37 58 56 Received Heat Transfer 350 | . 150 200 Siege Activations . | . . . Robots Corrupted . | . . . Combat Hostiles . | . . . Parts Fried . | . . . Impact Corruptions . | . . . Robots Melted . | . . . Combat Hostiles . | . . . Parts Melted 1 | 1 . . Heat Transferred 968 | 444 524 . Parts Sabotaged . | . . . Parts Stolen . | . . . Parts Stripped . | . . . Power Chain Reactions 1 | . 1 . Missiles Intercepted . | . . . Alert | -11 -10 -10 ------- Run | Scr Mat Min Peak Influence 231 | 15 231 95 Initial 90 | . 9 90 Average 129 | 4 172 89 Maximum Alert Level 1 | . 1 . Low Security (%) 68 | 100 48 100 Level 1 31 | . 51 . Level 2 . | . . . Level 3 . | . . . Level 4 . | . . . Level 5 . | . . . High Security . | . . . Max Security . | . . . Squads Dispatched 1 | . 1 . Investigation 1 | . 1 . Extermination . | . . . Reinforcement . | . . . Assault . | . . . Garrison . | . . . Intercept . | . . . Searches Triggered . | . . . Construction Impeded . | . . . Haulers Reinforced . | . . . Active Scanning Responses . | . . . Cargo Convoy Interrupts . | . . . Stealth | -11 -10 -10 --------- Run | Scr Mat Min Distress Signals 1 | . 1 . Communications Jammed . | . . . Distress Signals . | . . . Times Spotted 34 | . 13 21 Peak Tracking Total 18 | . 7 18 Tactical Retreats 2 | . 2 . Traps | -11 -10 -10 ------- Run | Scr Mat Min Traps Triggered 2 | . 2 . Indirectly . | . . . Trap Hack Attempts . | . . . Triggered . | . . . Disarmed . | . . . Reprogrammed . | . . . Reused . | . . . Traps Extracted . | . . . Installed . | . . . Triggered . | . . . Machines | -11 -10 -10 ---------- Run | Scr Mat Min Machines Disabled 2 | . 2 . Max in Single Turn 2 | . 2 . Machines Sabotaged . | . . . Overloaded Fab Kills . | . . . Hacking | -11 -10 -10 --------- Run | Scr Mat Min Machines Accessed 6 | . 6 . Terminals 6 | . 6 . Fabricators . | . . . Repair Stations . | . . . Recycling Units . | . . . Scanalyzers . | . . . Garrison Access . | . . . Total Hacks 28 | . 28 . Successful 15 | . 15 . Failed 13 | . 13 . Catastrophic . | . . . Database Lockouts . | . . . Manual 19 | . 19 . Terminals 28 | . 28 . Fabricators . | . . . Repair Stations . | . . . Recycling Units . | . . . Scanalyzers . | . . . Garrison Access . | . . . Terminal Hacks 12 | . 12 . Robot Analysis 7 | . 7 . Prototype ID Bank 2 | . 2 . Branch Access Points 1 | . 1 . Locate Traps 2 | . 2 . Fabricator Hacks . | . . . Repair Station Hacks . | . . . Recycling Unit Hacks . | . . . Scanalyzer . | . . . Garrison Access Hacks . | . . . Unauthorized Hacks 3 | . 3 . Terminals 3 | . 3 . Track 1 | . 1 . Botnet 1 | . 1 . Operators 1 | . 1 . Fabricators . | . . . Repair Stations . | . . . Recycling Units . | . . . Scanalyzers . | . . . Garrison Access . | . . . Data Cores Recovered . | . . . Used . | . . . Hacking Detections 6 | . 6 . Full Trace Events . | . . . Feedback Events . | . . . Feedback Blocked . | . . . Robot Schematics Acquired . | . . . Robots Built . | . . . Authchips . | . . . Time . | . . . Total Robot Build Rating . | . . . Part Schematics Acquired . | . . . Parts Built . | . . . Authchips . | . . . Time . | . . . Total Part Build Rating . | . . . Parts Repaired . | . . . Time . | . . . Parts Recycled . | . . . Recycled Matter . | . . . Retrieved Matter . | . . . Retrieved Components . | . . . Parts Scanalyzed . | . . . Part Schematics Acquired . | . . . Parts Damaged . | . . . Bothacking | -11 -10 -10 ------------ Run | Scr Mat Min Used RIF Installer . | . . . Robots Hacked . | . . . Non-combat . | . . . Combat . | . . . Robot Hacks Applied . | . . . Relay Couplers Released . | . . . Fabnet Peak Effective % . | . . . Robots Rewired . | . . . Allies Hacked . | . . . Hacks Repelled . | . . . Allies | -11 -10 -10 -------- Run | Scr Mat Min Total Allies 3 | . . 3 Largest Group 3 | . . 3 Highest-Rated Group 40 | . . 40 Highest-Rated Ally 16 | . . 16 Total Orders . | . . . Ally Attacks 5 | . . 5 Total Damage 23 | . . 23 Kills . | . . . Allies Corrupted . | . . . Allies Melted . | . . . Intel | -11 -10 -10 ------- Run | Scr Mat Min Robot Analysis Total 7 | . 7 . Derelict Logs Recovered 1 | . . 1 Drone Launches . | . . . Drone Recoveries . | . . . Exploration | -11 -10 -10 ------------- Run | Scr Mat Min Turns Passed 846 | 105 522 219 Spaces Moved 639 | 56 409 174 Core 9 | 9 . . Treads 3 | . . 3 Legs . | . . . Wheels 627 | 47 409 171 Hover . | . . . Flight . | . . . Fastest Speed 50 | 50 80 105 Average Speed 99 | 85 97 107 Slowest Speed 240 | 100 140 240 Overloaded Moves . | . . . Propulsion Burnouts . | . . . Robots Hopped . | . . . Cave-ins Triggered . | . . . Exploration Rate (%) 46 | 4 85 49 Regions Visited 2 Branch Regions 1 Pre-discovered Areas . | . . . Known Exits Taken 1 | . 1 . Unknown Exits Taken 1 | 1 . . Scrap Searched 1 | . . 1 Spaces Dug 2 | . 2 . Terrain Destroyed 30 | . 30 . Melee . | . . . Projectile 2 | . 2 . AOE 28 | . 28 . Terrain Rammed . | . . . Walls Destroyed . | . . . Machines Disabled . | . . . Actions | -11 -10 -10 --------- Run | Scr Mat Min Total 777 | 90 492 195 Wait 5 | . 5 . Move 637 | 55 408 174 Hop . | . . . Pick Up 35 | 10 23 2 Fast Attach 8 | 4 3 1 Attach 11 | 6 5 . Detach 7 | 3 3 1 Swap 20 | . 14 6 Drop 14 | . 10 4 Fire 40 | 12 21 7 Melee . | . . . Ram . | . . . Kick . | . . . Crush . | . . . Escape Stasis . | . . . Rewire . | . . . Trap . | . . . Miscellaneous . | . . . Route ------- -11/Scrapyard -10/Materials (discovered 4 exits: [*Mat x3] / *Min) -10/Mines (discovered 1 exit: [*Mat]) History --------- Turn | Location | Event 16 | -11/Scrapyard | Discovered new exit (range 14) 106 | -11/Scrapyard | Entered Materials 234 | -10/Materials | Discovered new exit (range 4) 315 | -10/Materials | Build established: Mutant 316 | -10/Materials | Discovered new exit (range 15) 426 | -10/Materials | Identified exit to Mines 470 | -10/Materials | Discovered new exit (range 4) 515 | -10/Materials | Core integrity fell below 50% 545 | -10/Materials | Lost 4 parts (1p1n2w) 628 | -10/Materials | Entered Mines 683 | -10/Mines | Found a damaged Exp. Sensor Array with a note attached 686 | -10/Mines | Found Prototype Device 686 | -10/Mines | Identified Exp. Sensor Array 703 | -10/Mines | Discovered new exit (range 5) 760 | -10/Mines | Learned location of 1 exit from Materials 783 | -10/Mines | Assisted by bots powering up and referring to "LRC-V3" 820 | -10/Mines | Assembled infested the area 825 | -10/Mines | Assisted by a Guerilla fighting off Assembled 843 | -10/Mines | Core integrity fell below 20% 847 | -10/Mines | Destroyed by as-83948 with Assembled F-torch Last Messages --------------- 00832_ Trooper 1b suffers critical hit (Destroy). 00832_ Trooper 1b destroyed. 00834_ HV Slug penetrates as-99629. 00834_ as-99629 suffers critical hit (Destroy). 00834_ as-99629 destroyed. 00834_ HV Slug penetrates Wall. 00836_ Acquired 38 matter. 00837_ as-52954 suffers critical hit (Destroy). 00837_ as-52954 destroyed. 00839_ HV Slug penetrates as-61106. 00839_ as-61106 destroyed. 00841_ as-60469 destroyed. 00845_ HV Slug penetrates as-25612. 00845_ HV Slug penetrates as-25174. 00845_ as-25174 suffers critical hit (Destroy). 00845_ as-25174 destroyed. 00846_ as-25612 destroyed. 00846_ Switching to secondary target: as-65844. 00846_ YQ-CE3(h) destroyed. 00847_ Acquired 11 matter. Map ----- +----------------------------------------------------+ | ??????????????????????# #?????????????? | | ??????????????????????# #?????????????? | | ??????????????#???????# #?????????????? | | ????????#?????????????# #?????????????? | | ?????????????#?#??????# #?????????????? | | ?????????????????????## #???#?????????? | | ??????????#???????????### ## ######?????????????? | | ???????????????#????????# ## #??#??#????????????? | | ??????? ????????????????# #??????????????????? | | ???????????????????###### ####??????????????????? | | ???????????????????# #?????????????????????? | | ???????????????????# #?????????????????????? | | ???????????????????# ######?????#???????????????? | | ???????????????????# #?????#???#????????????????? | | ??????#?#????#?????# #???#???????? ????????????? | | ???????????????????# #?#????????? ????????????? | | ???????????????????# ##????????? ???????????? | | ???????????????????# #????????? #???????????? | | ???????????????????# #???????? #????????????? | | ???????????????????# #??????? #?????????????? | | ???????????????????# #??#?#? #??????????????? | | ???????????????????# #?????# ##??????????????? | | ??????????????????## ###### aa ;#??????????????? | | ????????????????### !!%* aa %###;#???????????? | | ?????????????#### !a=aaa% $% a ????????? | | ?????????????# @%aa % ????????? | | ????????????# ## %%aa######??????????????? | | ????????????# #?## ]! ##???????????????????? | | ????????????## #?#?# ###????????????????????? | | ?????????????###????## ##??????????????????????? | | ?????????????????#???#####???????????????????????? | | ???????????????#?????????????????????????????????? | | ?????????????????????????????????????????????????? | | ??????????????#??????????????????????????????????? | | | | | | | | | | | | | | | | | | | | | | | | | | | | | | | | | +----------------------------------------------------+ Best States ------------- Heat Dissipation 25 Energy Generation 10 Energy Capacity 250 Matter Stores 300 Matter Capacity 300 Sight Range 16 Terrain Scan Range 16 Terrain Scan Density 10 Armor Coverage 150 Evasion (%) 50 Recoil Reduction 2 Item Schematics ----------------- None Robot Schematics ------------------ None Fabricated ------------ Nothing Alien Tech Used ----------------- None Achievements -------------- None Challenges ------------ None Game ------ Seed ClaymoresMeleeSpoofer Manual? 0 Play Time 00:17:21 Cumulative 775.0 hours Start 2022.11.30 @ 14:42:10 End 2022.11.30 @ 14:59:49 Sessions 1 Manual Loads 0 Difficulty Rogue Special Mode None Game No. 411 Rogue 284 Adventurer 125 Explorer 2 Win Type - Total 93 Types 78/7/4/1/1/0/0/1/1 Lore% 82 Gallery% 88 Achievement% 78 Wizard Run 0 Options --------- ASCII 0 Keyboard 1 Movement Numpad Keybinds 0 Fullscreen 1 Font 36/TerminusFine Map View 83x50 Tactical HUD 1 Map Filters NONE Filters NONE Steam 1 RUN: b2e76e7a-7147-4776-a63d-b982ec71884f